[Event "Titled Tuesday Blitz February 28 Late 2023"]
[White "Erzhanov, Arman"]
[Black "Sieciechowicz, Marcin"]
[WhiteFideId "4138821"]
[BlackFideId "1130170"]
[WhiteElo "2138"]
[BlackElo "2302"]
[Result "1/2-1/2"]
[Round "06"]
[TimeControl "180+2"]
[Date "2023.02.28"]
[WhiteClock "0:00:40"]
[BlackClock "0:00:09"]

1. e4 {[%clk 0:02:22]}  e5 {[%clk 0:02:57]} 2. Nf3 {[%clk 0:02:22]}  Nc6 {[%clk 0:02:56]} 3. Bb5 {[%clk 0:02:22]}  Nf6 {[%clk 0:02:54]} 4. O-O {[%clk 0:02:20]}  Nxe4 {[%clk 0:02:53]} 5. Re1 {[%clk 0:02:21]}  Nd6 {[%clk 0:02:53]} 6. Nxe5 {[%clk 0:02:21]}  Be7 {[%clk 0:02:53]} 7. Bf1 {[%clk 0:02:21]}  Nxe5 {[%clk 0:02:51]} 8. Rxe5 {[%clk 0:02:20]}  O-O {[%clk 0:02:52]} 9. d4 {[%clk 0:02:21]}  Ne8 {[%clk 0:02:50]} 10. Re1 {[%clk 0:02:17]}  d5 {[%clk 0:02:49]} 11. Bd3 {[%clk 0:02:17]}  Nf6 {[%clk 0:02:39]} 12. h3 {[%clk 0:02:17]}  Be6 {[%clk 0:02:19]} 13. Nd2 {[%clk 0:02:17]}  c5 {[%clk 0:02:11]} 14. dxc5 {[%clk 0:02:12]}  Bxc5 {[%clk 0:02:07]} 15. Nb3 {[%clk 0:02:12]}  Bd6 {[%clk 0:02:00]} 16. c3 {[%clk 0:02:12]}  Bc7 {[%clk 0:01:49]} 17. Nd4 {[%clk 0:01:42]}  Qd6 {[%clk 0:01:39]} 18. Nf3 {[%clk 0:01:43]}  Rfe8 {[%clk 0:01:31]} 19. Bg5 {[%clk 0:01:43]}  Bd7 {[%clk 0:01:23]} 20. Bh4 {[%clk 0:01:38]}  Ne4 {[%clk 0:01:02]} 21. Bxe4 {[%clk 0:01:36]}  dxe4 {[%clk 0:01:02]} 22. Qxd6 {[%clk 0:01:35]}  Bxd6 {[%clk 0:01:03]} 23. Rad1 {[%clk 0:01:28]}  exf3 {[%clk 0:00:56]} 24. Rxe8+ {[%clk 0:01:27]}  Rxe8 {[%clk 0:00:51]} 25. Rxd6 {[%clk 0:01:27]}  Bc6 {[%clk 0:00:49]} 26. gxf3 {[%clk 0:01:25]}  Bxf3 {[%clk 0:00:49]} 27. Rd8 {[%clk 0:01:24]}  Rxd8 {[%clk 0:00:36]} 28. Bxd8 {[%clk 0:01:25]}  f6 {[%clk 0:00:35]} 29. Kh2 {[%clk 0:01:25]}  Kf7 {[%clk 0:00:35]} 30. Kg3 {[%clk 0:01:25]}  Bd5 {[%clk 0:00:35]} 31. a3 {[%clk 0:01:19]}  Ke6 {[%clk 0:00:34]} 32. Kf4 {[%clk 0:01:19]}  g5+ {[%clk 0:00:33]} 33. Ke3 {[%clk 0:01:19]}  h5 {[%clk 0:00:33]} 34. f4 {[%clk 0:01:09]}  Kf5 {[%clk 0:00:16]} 35. fxg5 {[%clk 0:01:08]}  fxg5 {[%clk 0:00:17]} 36. h4 {[%clk 0:01:01]}  gxh4 {[%clk 0:00:15]} 37. Bxh4 {[%clk 0:01:00]}  Kg4 {[%clk 0:00:15]} 38. Bd8 {[%clk 0:00:58]}  h4 {[%clk 0:00:15]} 39. Kf2 {[%clk 0:00:58]}  h3 {[%clk 0:00:14]} 40. Bc7 {[%clk 0:00:59]}  Kf5 {[%clk 0:00:14]} 41. Bb8 {[%clk 0:00:59]}  a6 {[%clk 0:00:14]} 42. Ke3 {[%clk 0:00:56]}  Bg2 {[%clk 0:00:13]} 43. Bh2 {[%clk 0:00:54]}  Ke6 {[%clk 0:00:12]} 44. Kd4 {[%clk 0:00:54]}  Bc6 {[%clk 0:00:12]} 45. c4 {[%clk 0:00:54]}  Kf5 {[%clk 0:00:12]} 46. Ke3 {[%clk 0:00:54]}  Ba4 {[%clk 0:00:11]} 47. b4 {[%clk 0:00:54]}  Bb3 {[%clk 0:00:10]} 48. c5 {[%clk 0:00:54]}  Bd5 {[%clk 0:00:11]} 49. Bb8 {[%clk 0:00:52]}  Bc6 {[%clk 0:00:11]} 50. Bc7 {[%clk 0:00:53]}  Ke6 {[%clk 0:00:11]} 51. Bb8 {[%clk 0:00:52]}  Kd5 {[%clk 0:00:11]} 52. Kd3 {[%clk 0:00:52]}  Bb5+ {[%clk 0:00:11]} 53. Ke3 {[%clk 0:00:48]}  Kc4 {[%clk 0:00:11]} 54. Bc7 {[%clk 0:00:48]}  Kb3 {[%clk 0:00:11]} 55. Kf3 {[%clk 0:00:48]}  Kxa3 {[%clk 0:00:10]} 56. Ba5 {[%clk 0:00:49]}  Kb3 {[%clk 0:00:10]} 57. Kg3 {[%clk 0:00:49]}  Bd7 {[%clk 0:00:10]} 58. Kh2 {[%clk 0:00:49]}  Kc4 {[%clk 0:00:10]} 59. Kg3 {[%clk 0:00:50]}  Kb5 {[%clk 0:00:10]} 60. Kh2 {[%clk 0:00:50]}  Bc8 {[%clk 0:00:09]} 61. Kg3 {[%clk 0:00:51]}  Be6 {[%clk 0:00:09]} 62. Kh2 {[%clk 0:00:51]}  Kc6 {[%clk 0:00:08]} 63. Kg3 {[%clk 0:00:52]}  Kb5 {[%clk 0:00:08]} 64. Kh2 {[%clk 0:00:52]}  Kc6 {[%clk 0:00:08]} 65. Kg3 {[%clk 0:00:53]}  b6 {[%clk 0:00:09]} 66. cxb6 {[%clk 0:00:40]}  Kb7 {[%clk 0:00:08]} 67. Kh2 {[%clk 0:00:39]}  Bd7 {[%clk 0:00:08]} 68. Kg3 {[%clk 0:00:39]}  Bc8 {[%clk 0:00:08]} 69. Kh2 {[%clk 0:00:40]}  Kc6 {[%clk 0:00:08]} 70. Kg3 {[%clk 0:00:40]}  Kb7 {[%clk 0:00:08]} 71. Kh2 {[%clk 0:00:40]}  Kc6 {[%clk 0:00:08]} 72. Kg3 {[%clk 0:00:40]}  Kb7 {[%clk 0:00:09]} 1/2-1/2


[Site "https://www.chess.com"]

[Event "Titled Tuesday Blitz February 28 Late 2023"]
[White "Papasimakopoulos, Alexandros"]
[Black "Molenda, Marcin"]
[WhiteFideId "4244125"]
[BlackFideId "1173065"]
[WhiteElo "2359"]
[BlackElo "2286"]
[Result "1-0"]
[Round "06"]
[TimeControl "180+2"]
[Date "2023.02.28"]
[WhiteClock "0:02:24"]
[BlackClock "0:02:07"]

1. d4 {[%clk 0:03:00]}  d5 {[%clk 0:02:56]} 2. c4 {[%clk 0:03:01]}  e6 {[%clk 0:02:56]} 3. Nc3 {[%clk 0:03:01]}  Nf6 {[%clk 0:02:57]} 4. cxd5 {[%clk 0:03:01]}  exd5 {[%clk 0:02:57]} 5. Bg5 {[%clk 0:03:01]}  c6 {[%clk 0:02:58]} 6. e3 {[%clk 0:03:02]}  Be7 {[%clk 0:02:58]} 7. Bd3 {[%clk 0:03:01]}  Nbd7 {[%clk 0:02:58]} 8. Qc2 {[%clk 0:03:01]}  h6 {[%clk 0:02:58]} 9. Bh4 {[%clk 0:03:01]}  Nh5 {[%clk 0:02:59]} 10. Bxe7 {[%clk 0:03:01]}  Qxe7 {[%clk 0:03:00]} 11. O-O-O {[%clk 0:03:01]}  Nb6 {[%clk 0:02:59]} 12. Nf3 {[%clk 0:03:00]}  Be6 {[%clk 0:02:59]} 13. Kb1 {[%clk 0:02:59]}  O-O-O {[%clk 0:02:56]} 14. Ne5 {[%clk 0:02:59]}  Kb8 {[%clk 0:02:55]} 15. Rc1 {[%clk 0:02:57]}  Rc8 {[%clk 0:02:49]} 16. Na4 {[%clk 0:02:58]}  Nxa4 {[%clk 0:02:33]} 17. Qxa4 {[%clk 0:02:58]}  Nf6 {[%clk 0:02:31]} 18. Rc3 {[%clk 0:02:53]}  Nd7 {[%clk 0:02:24]} 19. Ra3 {[%clk 0:02:48]}  Nxe5 {[%clk 0:02:19]} 20. Qxa7+ {[%clk 0:02:43]}  Kc7 {[%clk 0:02:19]} 21. Qa5+ {[%clk 0:02:36]}  Kd7 {[%clk 0:02:17]} 22. dxe5 {[%clk 0:02:33]}  Qg5 {[%clk 0:02:13]} 23. Qb4 {[%clk 0:02:25]}  Rc7 {[%clk 0:02:07]} 24. Qd6+ {[%clk 0:02:24]} 1-0


[Site "https://www.chess.com"]

[Event "Titled Tuesday Blitz February 28 Late 2023"]
[White "Blomqvist, Erik"]
[Black "Mazurkiewicz, Michal"]
[WhiteFideId "1709437"]
[BlackFideId "1124943"]
[WhiteElo "2436"]
[BlackElo "2054"]
[Result "1-0"]
[Round "06"]
[TimeControl "180+2"]
[Date "2023.02.28"]
[WhiteClock "0:00:12"]
[BlackClock "0:00:01"]

1. e4 {[%clk 0:03:00]}  d6 {[%clk 0:02:59]} 2. d4 {[%clk 0:03:00]}  Nf6 {[%clk 0:03:00]} 3. Nc3 {[%clk 0:02:59]}  c6 {[%clk 0:03:01]} 4. Nf3 {[%clk 0:02:47]}  Bg4 {[%clk 0:03:00]} 5. h3 {[%clk 0:02:44]}  Bh5 {[%clk 0:03:00]} 6. Qe2 {[%clk 0:02:40]}  e6 {[%clk 0:02:57]} 7. g4 {[%clk 0:02:32]}  Bg6 {[%clk 0:02:58]} 8. g5 {[%clk 0:02:28]}  Nfd7 {[%clk 0:02:48]} 9. d5 {[%clk 0:02:07]}  cxd5 {[%clk 0:02:38]} 10. exd5 {[%clk 0:02:07]}  e5 {[%clk 0:02:38]} 11. Nh4 {[%clk 0:01:54]}  Be7 {[%clk 0:02:37]} 12. Nxg6 {[%clk 0:01:53]}  hxg6 {[%clk 0:02:38]} 13. h4 {[%clk 0:01:54]}  Na6 {[%clk 0:02:29]} 14. Be3 {[%clk 0:01:51]}  Qa5 {[%clk 0:02:12]} 15. Qb5 {[%clk 0:01:51]}  Qxb5 {[%clk 0:02:02]} 16. Nxb5 {[%clk 0:01:40]}  Kd8 {[%clk 0:01:57]} 17. Nxa7 {[%clk 0:01:34]}  Nb4 {[%clk 0:01:54]} 18. O-O-O {[%clk 0:01:28]}  Nxa2+ {[%clk 0:00:58]} 19. Kb1 {[%clk 0:01:27]}  Nb4 {[%clk 0:00:58]} 20. c3 {[%clk 0:01:22]}  Na6 {[%clk 0:00:58]} 21. Bxa6 {[%clk 0:01:11]}  bxa6 {[%clk 0:00:59]} 22. Nc6+ {[%clk 0:01:11]}  Ke8 {[%clk 0:00:59]} 23. Kc2 {[%clk 0:01:10]}  f5 {[%clk 0:00:40]} 24. gxf6 {[%clk 0:01:03]}  Nxf6 {[%clk 0:00:40]} 25. Bg5 {[%clk 0:00:56]}  Nxd5 {[%clk 0:00:29]} 26. Nxe7 {[%clk 0:00:49]}  Nxe7 {[%clk 0:00:28]} 27. Rxd6 {[%clk 0:00:50]}  Nf5 {[%clk 0:00:17]} 28. Rxg6 {[%clk 0:00:41]}  Kf7 {[%clk 0:00:17]} 29. Rb6 {[%clk 0:00:40]}  Rac8 {[%clk 0:00:05]} 30. Rxa6 {[%clk 0:00:36]}  Nd4+ {[%clk 0:00:06]} 31. Kd3 {[%clk 0:00:35]}  Nf3 {[%clk 0:00:06]} 32. Rha1 {[%clk 0:00:26]}  Nxg5 {[%clk 0:00:05]} 33. hxg5 {[%clk 0:00:26]}  Rh4 {[%clk 0:00:05]} 34. g6+ {[%clk 0:00:25]}  Kf8 {[%clk 0:00:03]} 35. Ke3 {[%clk 0:00:16]}  Ke7 {[%clk 0:00:02]} 36. Rb6 {[%clk 0:00:15]}  Rd8 {[%clk 0:00:01]} 37. Ra7+ {[%clk 0:00:14]}  Rd7 {[%clk 0:00:02]} 38. Rxd7+ {[%clk 0:00:15]}  Kxd7 {[%clk 0:00:03]} 39. Rb7+ {[%clk 0:00:16]}  Ke6 {[%clk 0:00:03]} 40. Rxg7 {[%clk 0:00:16]}  Kf6 {[%clk 0:00:03]} 41. Rg8 {[%clk 0:00:15]}  Rh1 {[%clk 0:00:02]} 42. b4 {[%clk 0:00:12]}  Rc1 {[%clk 0:00:02]} 43. Kd3 {[%clk 0:00:12]}  e4+ {[%clk 0:00:02]} 44. Kd4 {[%clk 0:00:11]}  Rc2 {[%clk 0:00:02]} 45. b5 {[%clk 0:00:11]}  Rxf2 {[%clk 0:00:03]} 46. Kxe4 {[%clk 0:00:11]}  Rb2 {[%clk 0:00:03]} 47. c4 {[%clk 0:00:11]}  Rc2 {[%clk 0:00:03]} 48. Kd5 {[%clk 0:00:11]}  Rd2+ {[%clk 0:00:03]} 49. Kc6 {[%clk 0:00:11]}  Rc2 {[%clk 0:00:01]} 50. c5 {[%clk 0:00:12]} 1-0


[Site "https://www.chess.com"]

[Event "Titled Tuesday Blitz February 28 Late 2023"]
[White "Zampronha, Wladimir Camilo"]
[Black "Remolar Gallen, Jose"]
[WhiteFideId "2103087"]
[BlackFideId "2215187"]
[WhiteElo "2176"]
[BlackElo "2223"]
[Result "0-1"]
[Round "06"]
[TimeControl "180+2"]
[Date "2023.02.28"]
[WhiteClock "0:01:07"]
[BlackClock "0:01:54"]

1. e4 {[%clk 0:03:00]}  c5 {[%clk 0:02:55]} 2. Nf3 {[%clk 0:03:01]}  g6 {[%clk 0:02:52]} 3. d4 {[%clk 0:03:01]}  cxd4 {[%clk 0:02:52]} 4. Nxd4 {[%clk 0:03:01]}  Bg7 {[%clk 0:02:52]} 5. Nc3 {[%clk 0:03:02]}  Nc6 {[%clk 0:02:52]} 6. Be3 {[%clk 0:03:02]}  Nf6 {[%clk 0:02:53]} 7. Bc4 {[%clk 0:03:02]}  O-O {[%clk 0:02:52]} 8. Bb3 {[%clk 0:03:03]}  a5 {[%clk 0:02:46]} 9. O-O {[%clk 0:02:34]}  a4 {[%clk 0:02:42]} 10. Nxa4 {[%clk 0:02:30]}  Nxe4 {[%clk 0:02:39]} 11. Nb5 {[%clk 0:02:24]}  d5 {[%clk 0:02:31]} 12. Nb6 {[%clk 0:02:15]}  Ra5 {[%clk 0:02:30]} 13. Nxc8 {[%clk 0:01:28]}  Rxb5 {[%clk 0:02:24]} 14. a4 {[%clk 0:01:28]}  Rxb3 {[%clk 0:02:23]} 15. cxb3 {[%clk 0:01:19]}  Qxc8 {[%clk 0:02:23]} 16. Qxd5 {[%clk 0:01:20]}  Qf5 {[%clk 0:02:08]} 17. Rfd1 {[%clk 0:01:12]}  Bxb2 {[%clk 0:02:05]} 18. Qxf5 {[%clk 0:01:10]}  gxf5 {[%clk 0:02:05]} 19. Rab1 {[%clk 0:01:08]}  Nc3 {[%clk 0:01:56]} 20. Rxb2 {[%clk 0:01:08]}  Nxd1 {[%clk 0:01:56]} 21. Rd2 {[%clk 0:01:06]}  Nxe3 {[%clk 0:01:54]} 22. fxe3 {[%clk 0:01:07]}  Rd8 {[%clk 0:01:54]} 0-1


[Site "https://www.chess.com"]

[Event "Titled Tuesday Blitz February 28 Late 2023"]
[White "Aung Thant Zin"]
[Black "Sanchez Alvares, Kelvin Antonio"]
[WhiteFideId "13000063"]
[BlackFideId "3906680"]
[WhiteElo "2278"]
[BlackElo "2217"]
[Result "1-0"]
[Round "06"]
[TimeControl "180+2"]
[Date "2023.02.28"]
[WhiteClock "0:00:14"]
[BlackClock "0:00:39"]

1. e4 {[%clk 0:02:55]}  e5 {[%clk 0:02:58]} 2. Nf3 {[%clk 0:02:55]}  Nc6 {[%clk 0:02:56]} 3. d4 {[%clk 0:02:56]}  exd4 {[%clk 0:02:55]} 4. Nxd4 {[%clk 0:02:57]}  Qh4 {[%clk 0:02:55]} 5. Nb5 {[%clk 0:02:57]}  Bc5 {[%clk 0:02:54]} 6. Qe2 {[%clk 0:02:54]}  Nd4 {[%clk 0:02:51]} 7. Nxd4 {[%clk 0:02:54]}  Bxd4 {[%clk 0:02:51]} 8. Be3 {[%clk 0:02:52]}  Bxe3 {[%clk 0:02:49]} 9. Qxe3 {[%clk 0:02:51]}  d6 {[%clk 0:02:49]} 10. Nc3 {[%clk 0:02:51]}  Be6 {[%clk 0:02:38]} 11. O-O-O {[%clk 0:02:50]}  a6 {[%clk 0:02:35]} 12. g3 {[%clk 0:02:49]}  Qe7 {[%clk 0:02:31]} 13. Bg2 {[%clk 0:02:48]}  Nf6 {[%clk 0:02:31]} 14. f4 {[%clk 0:02:48]}  O-O {[%clk 0:02:28]} 15. h3 {[%clk 0:02:47]}  c6 {[%clk 0:02:22]} 16. g4 {[%clk 0:02:47]}  Rae8 {[%clk 0:02:17]} 17. g5 {[%clk 0:02:40]}  Nd7 {[%clk 0:02:14]} 18. Qd4 {[%clk 0:02:33]}  Nb8 {[%clk 0:02:08]} 19. Qxd6 {[%clk 0:02:31]}  Qxd6 {[%clk 0:02:08]} 20. Rxd6 {[%clk 0:02:31]}  Re7 {[%clk 0:02:07]} 21. f5 {[%clk 0:02:25]}  Bc8 {[%clk 0:02:05]} 22. Rhd1 {[%clk 0:02:21]}  Rfe8 {[%clk 0:02:05]} 23. h4 {[%clk 0:02:19]}  Nd7 {[%clk 0:02:03]} 24. f6 {[%clk 0:02:00]}  gxf6 {[%clk 0:02:02]} 25. Bh3 {[%clk 0:01:47]}  Nc5 {[%clk 0:01:50]} 26. gxf6 {[%clk 0:01:45]}  Re5 {[%clk 0:01:42]} 27. Bxc8 {[%clk 0:01:31]}  Rxc8 {[%clk 0:01:41]} 28. Rg1+ {[%clk 0:01:23]}  Kf8 {[%clk 0:01:39]} 29. Rg7 {[%clk 0:01:22]}  Rh5 {[%clk 0:01:29]} 30. Ne2 {[%clk 0:00:45]}  Nxe4 {[%clk 0:01:17]} 31. Rd7 {[%clk 0:00:39]}  Rxh4 {[%clk 0:01:10]} 32. Rdxf7+ {[%clk 0:00:33]}  Ke8 {[%clk 0:01:10]} 33. Re7+ {[%clk 0:00:32]}  Kf8 {[%clk 0:01:10]} 34. b3 {[%clk 0:00:30]}  c5 {[%clk 0:00:51]} 35. Rxh7 {[%clk 0:00:21]}  Rxh7 {[%clk 0:00:50]} 36. Rxh7 {[%clk 0:00:21]}  Nxf6 {[%clk 0:00:49]} 37. Rxb7 {[%clk 0:00:20]}  Rc6 {[%clk 0:00:49]} 38. Nf4 {[%clk 0:00:19]}  Ke8 {[%clk 0:00:48]} 39. Ng6 {[%clk 0:00:19]}  Kd8 {[%clk 0:00:48]} 40. Ne5 {[%clk 0:00:19]}  Re6 {[%clk 0:00:45]} 41. Nc4 {[%clk 0:00:18]}  Kc8 {[%clk 0:00:45]} 42. Rb5 {[%clk 0:00:18]}  Nd7 {[%clk 0:00:44]} 43. Ra5 {[%clk 0:00:16]}  Kb7 {[%clk 0:00:42]} 44. a3 {[%clk 0:00:15]}  Re2 {[%clk 0:00:39]} 45. b4 {[%clk 0:00:14]}  cxb4 {[%clk 0:00:39]} 46. axb4 {[%clk 0:00:15]}  Re4 {[%clk 0:00:39]} 47. Nd6+ {[%clk 0:00:14]} 1-0


[Site "https://www.chess.com"]

[Event "Titled Tuesday Blitz February 28 Late 2023"]
[White "Liu, Eric"]
[Black "Guzman Moneo, Alberto"]
[WhiteFideId "30960240"]
[BlackFideId "2209616"]
[WhiteElo "2094"]
[BlackElo "2157"]
[Result "0-1"]
[Round "06"]
[TimeControl "180+2"]
[Date "2023.02.28"]
[WhiteClock "0:00:05"]
[BlackClock "0:00:18"]

1. Nf3 {[%clk 0:03:00]}  g6 {[%clk 0:02:55]} 2. c4 {[%clk 0:02:53]}  c5 {[%clk 0:02:54]} 3. b3 {[%clk 0:02:52]}  Bg7 {[%clk 0:02:54]} 4. Nc3 {[%clk 0:02:52]}  d6 {[%clk 0:02:49]} 5. e3 {[%clk 0:02:51]}  Nc6 {[%clk 0:02:46]} 6. Bb2 {[%clk 0:02:51]}  e6 {[%clk 0:02:41]} 7. Be2 {[%clk 0:02:51]}  Nge7 {[%clk 0:02:40]} 8. O-O {[%clk 0:02:51]}  O-O {[%clk 0:02:40]} 9. d4 {[%clk 0:02:51]}  cxd4 {[%clk 0:02:38]} 10. exd4 {[%clk 0:02:51]}  a6 {[%clk 0:02:36]} 11. d5 {[%clk 0:02:48]}  exd5 {[%clk 0:02:34]} 12. cxd5 {[%clk 0:02:49]}  Ne5 {[%clk 0:02:31]} 13. Nd4 {[%clk 0:02:49]}  Nf5 {[%clk 0:02:26]} 14. Ne4 {[%clk 0:02:34]}  Nxd4 {[%clk 0:02:19]} 15. Bxd4 {[%clk 0:02:35]}  Bf5 {[%clk 0:02:18]} 16. Ng3 {[%clk 0:02:34]}  Bc8 {[%clk 0:01:59]} 17. f4 {[%clk 0:02:34]}  Nd7 {[%clk 0:01:58]} 18. Bxg7 {[%clk 0:02:34]}  Kxg7 {[%clk 0:01:59]} 19. Ne4 {[%clk 0:02:23]}  Nf6 {[%clk 0:01:53]} 20. Qd4 {[%clk 0:02:23]}  Bf5 {[%clk 0:01:52]} 21. Ng3 {[%clk 0:02:17]}  Re8 {[%clk 0:01:45]} 22. Nxf5+ {[%clk 0:02:16]}  gxf5 {[%clk 0:01:45]} 23. Bd3 {[%clk 0:02:16]}  Qd7 {[%clk 0:01:38]} 24. Rf3 {[%clk 0:02:16]}  Qe7 {[%clk 0:01:30]} 25. Bxf5 {[%clk 0:02:04]}  h5 {[%clk 0:01:18]} 26. Raf1 {[%clk 0:01:46]}  Kh6 {[%clk 0:01:17]} 27. Rg3 {[%clk 0:01:43]}  Rg8 {[%clk 0:01:16]} 28. Rg5 {[%clk 0:01:41]}  Rae8 {[%clk 0:01:08]} 29. h4 {[%clk 0:01:14]}  Qe3+ {[%clk 0:01:03]} 30. Qxe3 {[%clk 0:01:14]}  Rxe3 {[%clk 0:01:04]} 31. Rxg8 {[%clk 0:01:14]}  Nxg8 {[%clk 0:01:04]} 32. Bc8 {[%clk 0:01:06]}  Re7 {[%clk 0:00:52]} 33. Rd1 {[%clk 0:00:42]}  Nf6 {[%clk 0:00:50]} 34. Kf2 {[%clk 0:00:36]}  Kg6 {[%clk 0:00:50]} 35. Kf3 {[%clk 0:00:33]}  Rc7 {[%clk 0:00:50]} 36. Bh3 {[%clk 0:00:32]}  Rc3+ {[%clk 0:00:48]} 37. Ke2 {[%clk 0:00:31]}  Rc2+ {[%clk 0:00:48]} 38. Rd2 {[%clk 0:00:31]}  Rxd2+ {[%clk 0:00:48]} 39. Kxd2 {[%clk 0:00:32]}  Nxd5 {[%clk 0:00:48]} 40. g3 {[%clk 0:00:33]}  Nf6 {[%clk 0:00:42]} 41. Bc8 {[%clk 0:00:33]}  Ne4+ {[%clk 0:00:40]} 42. Ke3 {[%clk 0:00:33]}  Nxg3 {[%clk 0:00:41]} 43. Bxb7 {[%clk 0:00:31]}  a5 {[%clk 0:00:40]} 44. a3 {[%clk 0:00:23]}  Nf5+ {[%clk 0:00:36]} 45. Ke4 {[%clk 0:00:20]}  Nxh4 {[%clk 0:00:36]} 46. b4 {[%clk 0:00:21]}  axb4 {[%clk 0:00:36]} 47. axb4 {[%clk 0:00:22]}  f5+ {[%clk 0:00:36]} 48. Ke3 {[%clk 0:00:21]}  Kf6 {[%clk 0:00:34]} 49. b5 {[%clk 0:00:19]}  Ke7 {[%clk 0:00:32]} 50. b6 {[%clk 0:00:20]}  Kd7 {[%clk 0:00:31]} 51. Bd5 {[%clk 0:00:19]}  Ng6 {[%clk 0:00:31]} 52. Be6+ {[%clk 0:00:07]}  Kc6 {[%clk 0:00:25]} 53. Bxf5 {[%clk 0:00:07]}  Ne7 {[%clk 0:00:25]} 54. Be4+ {[%clk 0:00:05]}  Kxb6 {[%clk 0:00:25]} 55. Bf3 {[%clk 0:00:05]}  h4 {[%clk 0:00:25]} 56. Ke4 {[%clk 0:00:05]}  Kc5 {[%clk 0:00:25]} 57. Bg4 {[%clk 0:00:03]}  d5+ {[%clk 0:00:24]} 58. Kd3 {[%clk 0:00:04]}  d4 {[%clk 0:00:24]} 59. f5 {[%clk 0:00:03]}  Nd5 {[%clk 0:00:24]} 60. Bf3 {[%clk 0:00:02]}  Nf6 {[%clk 0:00:24]} 61. Bg2 {[%clk 0:00:01]}  Nh5 {[%clk 0:00:23]} 62. Bf1 {[%clk 0:00:02]}  Kd5 {[%clk 0:00:18]} 63. Kd2 {[%clk 0:00:01]}  Ke5 {[%clk 0:00:17]} 64. Kd3 {[%clk 0:00:01]}  Ng3 {[%clk 0:00:15]} 65. Bh3 {[%clk 0:00:01]}  Nxf5 {[%clk 0:00:14]} 66. Bxf5 {[%clk 0:00:01]}  Kxf5 {[%clk 0:00:15]} 67. Kxd4 {[%clk 0:00:02]}  Kf4 {[%clk 0:00:16]} 68. Kd3 {[%clk 0:00:02]}  Kf3 {[%clk 0:00:16]} 69. Kd2 {[%clk 0:00:03]}  Kf2 {[%clk 0:00:17]} 70. Kd3 {[%clk 0:00:03]}  h3 {[%clk 0:00:17]} 71. Ke4 {[%clk 0:00:04]}  h2 {[%clk 0:00:18]} 72. Kf4 {[%clk 0:00:05]}  h1=Q {[%clk 0:00:18]} 0-1


[Site "https://www.chess.com"]

[Event "Titled Tuesday Blitz February 28 Late 2023"]
[White "Bouget, Alexandre"]
[Black "Klose, Eli"]
[WhiteFideId "681318"]
[BlackFideId "16242955"]
[WhiteElo "2177"]
[BlackElo "2580"]
[Result "0-1"]
[Round "06"]
[TimeControl "180+2"]
[Date "2023.02.28"]
[WhiteClock "0:00:02"]
[BlackClock "0:00:07"]

1. d4 {[%clk 0:02:54]}  Nf6 {[%clk 0:02:57]} 2. c4 {[%clk 0:02:53]}  c5 {[%clk 0:02:51]} 3. d5 {[%clk 0:02:52]}  b5 {[%clk 0:02:51]} 4. cxb5 {[%clk 0:02:53]}  a6 {[%clk 0:02:51]} 5. Nc3 {[%clk 0:02:54]}  g6 {[%clk 0:02:52]} 6. e4 {[%clk 0:02:54]}  d6 {[%clk 0:02:52]} 7. Nf3 {[%clk 0:02:50]}  Bg7 {[%clk 0:02:52]} 8. b6 {[%clk 0:02:44]}  O-O {[%clk 0:02:47]} 9. Nd2 {[%clk 0:02:44]}  Nbd7 {[%clk 0:02:46]} 10. a4 {[%clk 0:02:38]}  a5 {[%clk 0:02:39]} 11. Nc4 {[%clk 0:02:34]}  Nxb6 {[%clk 0:02:38]} 12. Bg5 {[%clk 0:02:10]}  Nxc4 {[%clk 0:02:37]} 13. Bxc4 {[%clk 0:02:09]}  Ba6 {[%clk 0:02:37]} 14. Bxa6 {[%clk 0:02:06]}  Rxa6 {[%clk 0:02:38]} 15. O-O {[%clk 0:02:04]}  Rb6 {[%clk 0:02:35]} 16. Rb1 {[%clk 0:01:52]}  Ne8 {[%clk 0:02:23]} 17. Nb5 {[%clk 0:01:49]}  Nc7 {[%clk 0:02:20]} 18. Na3 {[%clk 0:01:24]}  Rxb2 {[%clk 0:02:15]} 19. Rxb2 {[%clk 0:01:19]}  Bxb2 {[%clk 0:02:16]} 20. Nc4 {[%clk 0:01:19]}  Bc3 {[%clk 0:01:14]} 21. Qc2 {[%clk 0:01:15]}  Bb4 {[%clk 0:01:14]} 22. Bh6 {[%clk 0:01:07]}  Re8 {[%clk 0:01:13]} 23. f4 {[%clk 0:00:58]}  Na8 {[%clk 0:01:08]} 24. f5 {[%clk 0:00:56]}  Nb6 {[%clk 0:00:54]} 25. fxg6 {[%clk 0:00:55]}  hxg6 {[%clk 0:00:55]} 26. Qf2 {[%clk 0:00:48]}  f6 {[%clk 0:00:50]} 27. Ne3 {[%clk 0:00:35]}  Bc3 {[%clk 0:00:38]} 28. Qg3 {[%clk 0:00:32]}  Kf7 {[%clk 0:00:38]} 29. h4 {[%clk 0:00:26]}  Rh8 {[%clk 0:00:34]} 30. Bf4 {[%clk 0:00:22]}  Bd4 {[%clk 0:00:29]} 31. Kh2 {[%clk 0:00:20]}  Rh5 {[%clk 0:00:27]} 32. Ng4 {[%clk 0:00:19]}  Qh8 {[%clk 0:00:25]} 33. Kh3 {[%clk 0:00:19]}  g5 {[%clk 0:00:18]} 34. Bxg5 {[%clk 0:00:16]}  Rxg5 {[%clk 0:00:19]} 35. Qb3 {[%clk 0:00:15]}  Rh5 {[%clk 0:00:17]} 36. g3 {[%clk 0:00:14]}  Nd7 {[%clk 0:00:17]} 37. Qb7 {[%clk 0:00:07]}  Ne5 {[%clk 0:00:15]} 38. Nh2 {[%clk 0:00:05]}  Qg7 {[%clk 0:00:09]} 39. Qb5 {[%clk 0:00:04]}  Qg6 {[%clk 0:00:08]} 40. Re1 {[%clk 0:00:03]}  Rh8 {[%clk 0:00:07]} 41. Qxa5 {[%clk 0:00:02]}  Rg8 {[%clk 0:00:07]} 0-1


[Site "https://www.chess.com"]